bitfinex/quotes_ETHUSD_20220308
["timestamp","ask_amount","ask_price","bid_price","bid_amount"]
[1646730431472,0.9738609,2568.7,2568.2,1.15403153]
[1646730431873,0.9738609,2568.7,2568.3,0.97396]
[1646730432074,0.9738609,2568.7,2568.3,2.92181]
[1646730432275,0.9738609,2568.7,2568.3,3.22181]
[1646730432474,1.68414032,2568.7,2568.3,3.22181]
[1646730432732,0.71027942,2568.6,2568.3,3.22181]
[1646730433128,0.9754899,2568.6,2568.4,0.97393]
[1646730433323,1.92252913,2568.6,2568.4,1.27393]
[1646730433926,0.1945,2568.5,2568.4,0.3]
[1646730434327,0.1945,2568.5,2568.3,2.92181]
[1646730434328,0.94703923,2568.5,2568.3,2.92181]
[1646730434729,4.44703923,2568.4,2568.3,2.92181]
[1646730435226,4.44703923,2568.4,2567.9,2.92228]
[1646730435227,0.97432,2568.3,2567.9,2.92228]
[1646730435426,0.948979,2568.1,2567.9,2.92228]
[1646730435628,3.5,2568.0,2567.9,2.92228]
[1646730435827,4.5,2568.0,2567.9,2.92228]
[1646730436029,5.448979,2568.0,2567.9,2.92228]
[1646730436467,0.948979,2568.0,2567.9,2.92228]
[1646730437068,3.57746301,2568.1,2567.9,3.22228]
[1646730437268,1.65416401,2568.1,2567.9,3.22228]
[1646730437468,0.71175661,2568.0,2567.9,3.22228]
[1646730437873,1.9486224,2568.2,2567.9,3.22228]
[1646730438072,2.8976014,2568.2,2567.9,3.22228]
[1646730438274,2.8976014,2568.2,2567.9,4.19642]
[1646730438474,2.8976014,2568.2,2568.0,0.97413]
[1646730438972,0.7392334,2568.4,2568.1,1.94818]
[1646730439273,0.00479669,2568.4,2568.1,4.87045]
[1646730439476,0.9740869,2568.3,2568.1,5.17045]
[1646730439677,0.00479669,2568.4,2568.1,5.17045]
[1646730439875,0.3,2568.3,2568.1,5.17045]
[1646730440075,1.91875884,2568.6,2568.2,1.17469868]
[1646730440318,2.20838616,2568.6,2568.2,2.14869868]
[1646730440518,0.9740101,2568.5,2568.2,2.14869868]
[1646730440721,0.9740101,2568.5,2568.2,1.274]
[1646730441121,0.9740101,2568.5,2568.2,2.24802]
[1646730441322,1.42055884,2568.4,2568.2,2.24802]
[1646730441719,2.49883585,2568.3,2568.2,1.274]
[1646730442320,2.49883585,2568.3,2568.1,2.92227]
[1646730442519,0.466,2568.2,2568.1,2.92227]
[1646730442722,1.88655884,2568.2,2568.1,2.92227]
[1646730442924,2.88655884,2568.2,2568.1,2.01169301]
[1646730444176,2.88655884,2568.2,2568.1,2.31169301]
[1646730444578,6.38655884,2568.2,2568.1,2.31169301]
[1646730444779,6.38655884,2568.2,2568.1,2.01169301]
[1646730445077,3.966,2568.2,2568.1,0.25687554]
[1646730445277,4.966,2568.2,2568.1,0.25687554]
[1646730445677,1.466,2568.2,2568.1,0.25687554]
[1646730446181,1.89067549,2568.2,2568.1,0.25687554]
[1646730446983,2.89067549,2568.2,2568.1,0.25687554]
[1646730447184,2.56337171,2568.2,2568.1,0.25687554]
[1646730448027,1.86337171,2568.2,2568.1,0.25687554]
[1646730448225,3.74512594,2568.2,2568.1,0.25687554]
[1646730448425,4.74512594,2568.2,2568.1,0.25687554]
[1646730448828,2.86337171,2568.2,2568.1,0.25687554]
[1646730449426,1.766,2568.2,2568.1,0.25687554]
[1646730449630,3.66378352,2568.2,2568.1,0.25687554]
[1646730449829,1.766,2568.2,2568.1,0.25687554]
[1646730450229,2.18919452,2568.2,2568.1,0.25687554]
[1646730450629,0.466,2568.2,2568.1,0.25687554]
[1646730451230,5.82508832,2568.5,2568.1,3.75687554]
[1646730451231,2.40198932,2568.5,2568.1,3.75687554]
[1646730451480,1.42797922,2568.5,2568.2,0.97407]
[1646730451672,0.0047847,2568.5,2568.2,1.94809]
[1646730451872,0.0047847,2568.5,2568.2,2.24809]
[1646730452072,1.42319452,2568.6,2568.2,2.24809]
[1646730452273,0.00478508,2568.5,2568.2,2.24809]
[1646730452777,0.00478508,2568.5,2568.3,3.5]
[1646730452977,0.00478508,2568.5,2568.2,2.24809]
[1646730453180,1.98996431,2568.8,2568.2,2.24809]
[1646730453181,0.155918,2568.6,2568.2,2.24809]
[1646730453477,0.00478517,2568.5,2568.2,2.24809]
[1646730454080,4.38711893,2568.8,2568.5,0.9315945]
[1646730454278,4.38711893,2568.8,2568.5,2.8795945]
[1646730454778,2.96392441,2568.8,2568.5,2.8795945]
[1646730457022,2.96869762,2568.8,2568.5,2.8795945]
[1646730458123,2.96392441,2568.8,2568.5,2.8795945]
[1646730458324,2.96869762,2568.8,2568.5,2.8795945]
[1646730458523,1.42319452,2568.9,2568.5,2.8795945]
[1646730458724,1.42319452,2568.9,2568.6,1.94787]
[1646730458971,4.34510762,2569.0,2568.6,1.94787]
[1646730459377,0.9739601,2568.8,2568.6,1.94787]
[1646730459576,1.9479801,2568.8,2568.6,1.94787]
[1646730459778,1.9479801,2568.8,2568.5,0.974]
[1646730459779,0.3,2568.7,2568.5,0.974]
[1646730459978,0.43371116,2568.3,2568.2,0.97429]
[1646730460378,1.38236636,2568.3,2568.2,0.97429]
[1646730461181,0.43371116,2568.3,2568.2,1.27429]
[1646730461379,0.43371116,2568.3,2568.2,0.97429]
[1646730461580,0.43371116,2568.3,2568.2,1.27429]
[1646730462180,1.38236636,2568.3,2568.2,1.27429]
[1646730462823,1.89971116,2568.3,2568.2,1.27429]
[1646730463322,1.89971116,2568.3,2568.2,0.97429]
[1646730463323,3.32270748,2568.3,2568.2,0.97429]
[1646730463923,4.74314794,2568.3,2568.2,0.97429]
[1646730464324,3.32270748,2568.3,2568.2,0.97429]
[1646730464722,2.32270748,2568.3,2568.2,1.27429]
[1646730464924,0.89971116,2568.3,2568.2,1.27429]
[1646730465123,0.89971116,2568.3,2568.2,0.97429]
[1646730465322,1.84842867,2568.3,2568.2,1.27429]
[1646730467171,0.89971116,2568.3,2568.2,1.27429]
[1646730467974,1.84842867,2568.3,2568.2,1.27429]
[1646730468375,1.57279826,2568.4,2568.2,1.27429]
[1646730469074,1.57279826,2568.4,2568.2,1.27963553]
[1646730469876,2.99579458,2568.4,2568.2,1.27963553]
[1646730470078,1.42299632,2568.3,2568.2,1.27429]
[1646730470323,1.42299632,2568.3,2568.2,1.27939548]
[1646730470924,0.89554632,2568.3,2568.2,1.27939548]
[1646730471125,0.89554632,2568.3,2568.2,1.27429]
[1646730471724,1.36154632,2568.3,2568.2,1.27429]
[1646730471925,2.36154632,2568.3,2568.2,1.27429]
[1646730472828,1.36154632,2568.3,2568.2,1.27429]
[1646730474070,0.466,2568.3,2568.2,1.27429]
[1646730478925,1.89225504,2568.3,2568.2,1.27429]
[1646730480428,0.466,2568.3,2568.2,1.27429]
[1646730480928,0.95068658,2568.4,2568.2,2.24835]
[1646730482275,0.95068658,2568.4,2568.2,2.25332241]
[1646730482477,0.95068658,2568.5,2568.2,2.25332241]
[1646730482675,0.95068658,2568.4,2568.2,2.25332241]
[1646730483280,0.95068658,2568.5,2568.2,2.24835]
[1646730483484,0.95068658,2568.5,2568.2,2.64662241]
[1646730483680,0.155917,2568.6,2568.3,3.31478]
[1646730483681,1.10660358,2568.6,2568.3,3.31478]
[1646730483881,1.10660358,2568.6,2568.3,2.92148]
[1646730484080,1.10660358,2568.6,2568.4,1.94763]
[1646730484281,0.95068658,2568.5,2568.4,2.245502]
[1646730484880,0.155917,2568.6,2568.4,2.245502]
[1646730485526,1.58217204,2568.6,2568.4,2.245502]
[1646730487225,0.155917,2568.6,2568.3,5.17410209]
[1646730487429,1.42584092,2568.4,2568.3,0.00497209]
[1646730487626,3.966,2568.4,2568.3,0.00497209]
[1646730487824,5.266,2568.4,2568.3,0.00497209]
[1646730488124,5.266,2568.4,2568.2,1.94841]
[1646730488325,5.266,2568.4,2568.2,1.95338214]
[1646730488725,1.766,2568.4,2568.2,1.95338214]
[1646730489171,1.766,2568.4,2568.2,1.94841]
[1646730489973,1.4259607,2568.3,2568.2,2.24841]
[1646730490177,1.4259607,2568.3,2568.2,0.97424]
[1646730490376,1.95005968,2568.4,2568.2,0.97424]
[1646730491476,1.42612577,2568.3,2568.2,0.97424]
[1646730491676,1.89212577,2568.3,2568.2,0.97424]
[1646730492739,0.466,2568.3,2568.2,0.97424]
[1646730493927,1.42612577,2568.4,2568.2,1.94825]
[1646730494327,1.42612577,2568.4,2568.2,2.24825]
[1646730495331,1.37612577,2568.4,2568.2,2.24825]
[1646730495528,1.37612577,2568.4,2568.2,2.25376086]
[1646730496129,0.95168331,2568.3,2568.2,2.25376086]
[1646730496574,0.95168331,2568.5,2568.2,2.64155]
[1646730496774,0.95168331,2568.5,2568.2,2.25376086]
[1646730497576,0.95168331,2568.5,2568.2,2.24825]
[1646730497983,0.95168331,2568.5,2568.2,2.25357892]
[1646730498583,0.95168331,2568.5,2568.2,2.24722192]
[1646730498781,0.95168331,2568.5,2568.2,2.241893]
[1646730498981,0.95168331,2568.5,2568.2,2.24722192]
[1646730499182,1.92578141,2568.5,2568.2,2.24722192]
[1646730499381,1.92578141,2568.5,2568.2,0.30532892]
[1646730499382,0.95168331,2568.3,2568.2,0.30532892]
[1646730499782,0.95168331,2568.3,2568.2,0.00532892]
[1646730499983,0.95168331,2568.3,2568.1,2.24838]
[1646730500244,0.95168331,2568.4,2568.1,2.25370908]
[1646730500424,0.95168331,2568.4,2568.2,0.97413]
[1646730500628,0.95168331,2568.3,2568.2,0.97413]
[1646730500828,0.95168331,2568.4,2568.2,0.97413]
[1646730501927,0.95168331,2568.4,2568.2,1.94817]
[1646730502127,0.95168331,2568.4,2568.2,2.24817]
[1646730502527,0.95168331,2568.3,2568.2,2.24817]
[1646730502729,0.95168331,2568.3,2568.2,1.27912415]
[1646730503130,0.95168331,2568.3,2568.2,0.00508415]
[1646730503727,0.95168331,2568.3,2568.1,1.94815]
[1646730503973,0.95168331,2568.3,2568.1,1.95323423]
[1646730504180,0.95168331,2568.4,2568.1,1.95323423]
[1646730504580,0.95168331,2568.5,2568.1,1.95323423]
[1646730504781,0.95168331,2568.7,2568.2,2.9574239]
[1646730504981,0.95168331,2568.8,2568.3,0.9738]
[1646730505184,0.00476593,2568.7,2568.3,0.9738]
[1646730505382,0.00476593,2568.7,2568.3,1.2738]
[1646730505883,0.00476593,2568.7,2568.4,0.97381]
[1646730506082,0.95168331,2568.8,2568.5,1.94763]
[1646730506285,0.95168331,2568.8,2568.5,2.34093]
[1646730506286,0.00476639,2568.7,2568.5,2.34093]
[1646730506483,0.00476639,2568.7,2568.5,5.84093]
[1646730506683,0.00476639,2568.7,2568.5,8.76203]
[1646730506885,0.00476639,2568.7,2568.5,8.36873]
[1646730507284,0.95168331,2569.0,2568.6,1.94767]
[1646730507485,0.00476653,2568.7,2568.6,2.92148]
[1646730507738,0.00476653,2568.7,2568.6,6.42148]
[1646730507932,0.00476653,2568.7,2568.6,6.72148]
[1646730508434,0.95168331,2569.0,2568.6,6.72148]
[1646730508633,0.00396323,2568.8,2568.7,0.97378]
[1646730508832,0.95168331,2569.0,2568.7,0.97378]
[1646730509034,0.95168331,2569.1,2568.7,0.97378]
[1646730509432,0.95168331,2569.1,2569.0,4.62754919]
[1646730509834,0.95168331,2569.1,2569.0,4.92754919]
[1646730510535,0.95168331,2569.3,2569.0,7.84831919]
[1646730510832,0.95168331,2569.4,2569.0,7.84831919]
[1646730511240,0.95168331,2569.5,2569.0,8.24161919]
[1646730511483,3.09028056,2570.0,2569.0,9.21520919]
[1646730511484,0.95168331,2569.6,2569.0,9.21520919]
[1646730511683,0.95168331,2569.7,2569.2,0.3933]
[1646730511884,1.42715273,2569.9,2569.2,5.84028]
[1646730511885,0.95168331,2569.9,2569.2,5.84028]
[1646730512085,0.95168331,2569.8,2569.2,5.84028]
[1646730512283,0.95168331,2569.8,2569.2,5.74698]
[1646730512684,0.95168331,2569.9,2569.2,5.74698]
[1646730512886,0.95168331,2570.0,2569.4,6.42056]
[1646730513387,1.42715273,2570.2,2569.4,6.42056]
[1646730513388,0.95168331,2570.2,2569.4,5.44704]
[1646730513785,0.95168331,2570.4,2569.4,6.84034]
[1646730514384,0.95168331,2570.5,2570.0,1.23389153]
[1646730514584,0.95168331,2570.5,2570.0,2.20713153]
[1646730514787,0.95168331,2570.5,2570.1,0.97325]
[1646730515242,4.45168331,2570.4,2570.2,3.5]
[1646730515530,0.95168331,2570.3,2570.2,2.04582363]
[1646730515730,2.42715273,2570.4,2570.2,2.04582363]
[1646730515930,1.42715273,2570.4,2570.2,2.04582363]
[1646730516137,1.42715273,2570.4,2570.2,3.99243363]
[1646730516331,1.0,2570.5,2570.2,1.94661]
[1646730516332,1.42715273,2570.5,2570.2,1.94661]
[1646730516534,1.42715273,2570.5,2570.2,3.89335]
[1646730516732,1.42715273,2570.4,2570.2,3.89335]
[1646730517838,0.94530139,2570.3,2570.2,3.89335]
[1646730518641,0.00474473,2570.4,2570.2,3.89335]
[1646730518838,0.94437786,2570.3,2570.2,3.89335]
[1646730519683,0.00474473,2570.4,2570.2,3.89335]
[1646730519884,4.47818473,2570.4,2570.2,3.89335]
[1646730520087,4.47818473,2570.4,2569.6,1.9471]
[1646730520088,5.38268382,2570.3,2569.6,1.9471]
[1646730520287,6.38268382,2570.3,2570.0,0.97369]
[1646730520483,0.3,2570.2,2570.0,0.97369]
[1646730520684,1.466,2570.1,2570.0,0.97369]
[1646730521083,2.41044096,2570.1,2570.0,0.97369]
[1646730521683,1.41044096,2570.1,2570.0,0.97369]
[1646730521983,1.466,2570.1,2570.0,0.97369]
[1646730522183,2.41044096,2570.1,2570.0,0.97369]
[1646730523839,1.466,2570.1,2570.0,0.97369]
[1646730524236,2.40996697,2570.1,2570.0,0.97369]
[1646730524536,2.40996695,2570.1,2570.0,0.97369]
[1646730525936,1.40996695,2570.1,2570.0,0.97369]
[1646730526136,2.40996695,2570.1,2570.0,0.97369]
[1646730527580,1.466,2570.1,2570.0,0.97369]
[1646730528384,4.966,2570.1,2570.0,0.97369]
[1646730528585,6.38268382,2570.1,2570.0,0.97369]
[1646730528988,2.88268382,2570.1,2570.0,0.97369]
[1646730529785,1.466,2570.1,2570.0,0.97369]
[1646730530635,1.466,2570.1,2569.8,2.52335345]
[1646730530835,1.41584637,2570.0,2569.8,2.52335345]
[1646730531040,1.466,2569.9,2569.8,2.52335345]
[1646730531238,0.466,2569.9,2569.8,2.52335345]
[1646730531835,0.94383527,2570.0,2569.8,2.52335345]
[1646730532036,0.00474473,2570.1,2569.8,2.52335345]
[1646730532337,3.48526505,2570.2,2569.8,2.82335345]
[1646730532338,0.94383527,2569.9,2569.8,2.82335345]
[1646730532537,5.14457265,2570.2,2569.8,2.82335345]
[1646730532538,0.94383527,2570.0,2569.8,2.82335345]
[1646730532745,0.94383527,2569.9,2569.8,2.82335345]
[1646730532939,1.0,2569.9,2569.8,2.82335345]
[1646730533138,2.88184637,2569.9,2569.7,0.9737]
[1646730533344,13.47584637,2569.8,2569.1,1.94753]
[1646730533540,13.47584637,2569.8,2569.0,3.89449]
[1646730533541,0.94442204,2569.3,2569.0,3.89449]
[1646730533743,1.41042204,2569.2,2569.0,3.60817467]
[1646730533977,1.41042204,2569.1,2569.0,3.60817467]
[1646730534177,2.41042204,2569.1,2569.0,3.60817467]
[1646730534675,1.766,2569.1,2569.0,3.60817467]
[1646730535078,1.766,2569.1,2568.9,0.97401]
[1646730535276,1.466,2569.1,2568.9,0.97401]
[1646730535475,0.766,2569.1,2568.9,0.97401]
[1646730535675,1.0,2569.0,2568.9,0.97401]
[1646730536079,0.466,2569.1,2568.9,0.97401]
[1646730536978,0.466,2569.1,2568.9,2.92172]
[1646730537281,0.94511403,2569.4,2568.9,2.92172]
[1646730537479,1.466,2569.5,2568.9,6.81502]
[1646730537480,0.94511403,2569.5,2568.9,6.81502]
[1646730537758,2.5577765,2569.8,2569.0,2.8933]
[1646730537759,0.94985747,2569.8,2569.0,2.8933]
[1646730537931,0.94985747,2569.8,2569.1,6.42061]
[1646730538133,0.94985747,2569.8,2569.5,0.88199533]
[1646730538532,0.94511403,2569.8,2569.5,0.88199533]
[1646730538733,0.9498583,2569.8,2569.5,0.88199533]
[1646730538932,0.9498583,2569.8,2569.3,0.3]
[1646730539132,0.9498583,2569.8,2568.9,3.31383]
[1646730539335,1.9498583,2569.8,2568.9,3.31383]
[1646730539533,1.94511403,2569.8,2568.9,3.31383]
[1646730539734,0.94511403,2569.7,2569.5,1.27355]
[1646730539932,1.94985811,2569.8,2569.5,1.27355]
[1646730540133,2.92352811,2569.8,2569.5,1.27355]
[1646730540739,1.92352811,2569.8,2569.5,1.27355]
[1646730540935,0.94511403,2569.7,2569.5,1.27355]
[1646730542179,0.94511403,2569.7,2569.5,2.24718]
[1646730542387,0.94511403,2569.7,2569.5,1.27355]
[1646730543683,0.94985858,2569.8,2569.5,1.27355]
[1646730544385,0.94511403,2569.8,2569.5,1.27355]
[1646730544788,1.92276021,2569.8,2569.5,1.27355]
[1646730544986,0.94511403,2569.7,2569.5,1.27355]
[1646730545932,0.94909013,2569.8,2569.5,1.27355]
[1646730546332,0.0039761,2569.8,2569.5,1.27355]
[1646730546836,0.94511403,2569.8,2569.5,1.27355]
[1646730547038,1.92278791,2569.8,2569.5,1.27355]
[1646730547437,0.94511403,2569.7,2569.5,1.27355]
[1646730547839,1.92278791,2569.8,2569.5,1.27355]
[1646730548038,0.94511403,2569.7,2569.5,1.27355]
[1646730548537,0.94511403,2569.7,2569.5,0.3]
[1646730548981,0.94511403,2569.7,2569.4,1.9471]
[1646730549179,1.91882403,2569.7,2569.4,1.9471]
[1646730549884,0.94511403,2569.6,2569.4,1.9471]
[1646730550082,0.97844225,2569.8,2569.4,1.9471]
[1646730550083,0.94985858,2569.8,2569.4,1.9471]
[1646730550381,0.94511403,2569.8,2569.4,1.9471]
[1646730550785,0.94985839,2569.8,2569.4,1.9471]
[1646730551184,0.94985839,2569.8,2569.5,4.86681]
[1646730551385,1.41663306,2570.0,2569.6,5.5]
[1646730551386,0.94511403,2570.0,2569.6,5.5]
[1646730551601,0.94511403,2570.3,2569.7,3.8933]
[1646730551781,0.94511403,2570.3,2569.7,0.3933]
[1646730551981,0.00474464,2569.8,2569.7,3.8933]
[1646730552182,0.00474464,2569.8,2569.7,0.3933]
[1646730552740,0.94511403,2570.4,2570.1,2.33368992]
[1646730553135,0.94511403,2570.4,2570.1,2.63368992]
[1646730553534,0.94511403,2570.4,2570.1,6.13368992]
[1646730553736,0.94835434,2570.5,2570.1,2.63368992]
[1646730554536,0.94835434,2570.5,2570.2,2.33962]
[1646730554740,1.2021,2571.1,2570.3,0.9729]
[1646730554741,0.94835434,2570.7,2570.3,0.9729]
[1646730554939,0.94835434,2570.8,2570.3,0.9729]
[1646730555537,0.00141705,2570.6,2570.3,0.9729]
[1646730555737,0.94835434,2570.9,2570.3,4.4729]
[1646730556137,0.94835434,2570.9,2570.3,5.44583]
[1646730556339,0.94835434,2570.9,2570.4,2.33906]
[1646730556576,0.94835434,2570.9,2570.4,4.28485]
[1646730556778,0.94835434,2570.9,2570.4,4.58485]
[1646730556979,0.94835434,2571.0,2570.4,4.58485]
[1646730557379,0.94835434,2571.1,2570.9,0.93847449]
[1646730557578,0.94835434,2571.2,2570.9,1.91130449]
[1646730557983,0.94835434,2571.3,2571.0,1.94568]
[1646730558382,0.1943,2571.7,2571.0,1.94568]
[1646730558383,0.94835434,2571.4,2571.0,1.94568]
[1646730558582,11.4085323,2572.1,2571.0,1.94568]
[1646730558583,0.94835434,2571.6,2571.0,1.94568]
[1646730558985,0.94835434,2571.7,2571.0,2.33898]
[1646730559385,0.94835434,2571.8,2571.2,0.3933]
[1646730559585,0.94835434,2571.8,2571.3,0.97252]
[1646730559786,0.94835434,2572.0,2571.3,0.97252]
[1646730559985,0.94835434,2572.1,2571.3,1.36582]
[1646730560429,0.00471747,2571.7,2571.3,1.36582]
[1646730560827,0.00471747,2571.7,2571.4,1.94504]
[1646730561025,0.00471747,2571.7,2571.4,4.86264]
[1646730561225,0.94835434,2572.1,2571.7,1.99193197]
[1646730561431,0.94835434,2572.0,2571.7,2.96449197]
[1646730561828,1.57234306,2572.3,2571.7,2.24511]
[1646730561829,0.94835434,2572.1,2571.7,2.24511]
[1646730562028,0.94835434,2571.9,2571.7,0.3]
[1646730562427,0.94835434,2571.9,2571.6,1.94512]
[1646730562428,0.94835434,2571.8,2571.6,1.94512]
[1646730563536,0.00471747,2571.9,2571.6,1.94512]
[1646730563734,0.94835434,2572.0,2571.6,1.94512]
[1646730563979,0.00471747,2571.8,2571.6,1.94512]
[1646730564277,0.00471747,2571.8,2571.7,0.97255]
[1646730564478,0.00471747,2571.8,2571.7,1.27255]
[1646730564877,0.94835434,2572.0,2571.7,1.27255]
[1646730565078,0.94835434,2572.0,2571.8,0.97267]
[1646730565377,0.00471747,2571.9,2571.8,0.97267]
[1646730565579,0.00471747,2571.9,2571.7,0.97255]
[1646730565781,0.00471747,2571.9,2571.4,1.94554]
[1646730565782,0.94835434,2571.8,2571.4,1.94554]
[1646730565978,3.5,2571.7,2571.1,2.91819]
[1646730566184,5.44835434,2571.7,2571.2,0.97296]
[1646730566382,0.94835434,2571.3,2570.7,1.94596]
[1646730566581,0.94835434,2571.3,2570.5,0.25]
[1646730566584,5.85810276,2571.2,2570.5,0.25]
[1646730566779,5.85810276,2571.2,2570.5,3.5]
[1646730566780,1.0,2571.1,2570.5,3.5]
[1646730566981,0.97328,2570.9,2570.5,3.5]
[1646730567282,1.0,2570.8,2570.5,3.5]
[1646730567579,1.0,2570.8,2570.4,1.9463]
[1646730567844,1.0,2570.8,2570.5,0.97325]
[1646730568045,4.5,2570.8,2570.5,0.97325]
[1646730568243,0.466,2570.7,2570.0,1.94679]
[1646730568448,5.47352,2570.6,2570.0,1.94679]
[1646730568645,1.0,2570.3,2570.0,1.94679]
[1646730569044,1.466,2570.3,2570.0,1.94679]
[1646730569245,3.5,2570.2,2570.0,1.94679]
[1646730569449,1.466,2570.1,2569.4,3.8573835]
[1646730569646,3.5,2570.0,2569.4,4.47369]
[1646730569844,4.5,2570.0,2569.4,0.97369]
[1646730570046,4.5,2570.0,2569.3,0.00516176]
[1646730570047,1.0,2569.8,2569.3,0.00516176]
[1646730570246,3.966,2569.7,2569.3,0.00516176]
[1646730570447,1.0,2569.5,2569.3,0.00516176]
[1646730570650,2.43997,2569.4,2569.3,0.00516176]
[1646730570848,5.93997,2569.4,2569.1,0.974]
[1646730571051,6.13553751,2569.4,2568.6,2.19789]
[1646730571256,6.13553751,2569.4,2569.3,0.0051614]
[1646730571257,5.63003751,2569.4,2569.3,0.0051614]
[1646730571498,5.13553751,2569.4,2569.3,0.0051614]
[1646730571699,2.43997,2569.4,2569.3,0.0051614]
[1646730571897,0.466,2569.4,2569.3,0.0051614]
[1646730572301,1.0,2569.6,2569.1,3.22148]
[1646730572499,0.1945,2569.5,2569.2,0.0051727]
[1646730572699,0.1945,2569.5,2569.2,2.9260327]
[1646730573202,0.1945,2569.6,2569.2,3.2260327]
[1646730573404,0.1945,2569.6,2569.2,3.22086]
[1646730573608,0.1945,2569.6,2569.3,0.97359]
[1646730573907,1.0,2569.9,2569.5,1.94682]
[1646730574103,0.13819997,2570.2,2569.5,1.94682]
[1646730574304,0.13819997,2570.2,2569.5,2.24682]
[1646730575103,0.13819997,2570.2,2569.7,1.20104633]
[1646730575335,0.00471673,2570.4,2569.8,1.94678]
[1646730575837,4.47337,2570.5,2569.8,1.94678]
[1646730576140,0.97346,2570.3,2569.5,2.92016]
[1646730576335,0.97346,2570.3,2569.3,0.00517225]
[1646730576336,1.0,2569.9,2569.3,0.00517225]
[1646730576537,1.0,2569.6,2569.3,0.00517225]
[1646730576938,1.90216225,2569.5,2568.6,1.07889034]
[1646730577138,3.5,2569.4,2569.3,0.0051719]
[1646730577340,2.87595225,2569.5,2569.3,0.0051719]
[1646730578144,2.87595225,2569.5,2569.2,2.24763]
[1646730578341,1.97379,2569.5,2569.2,2.24763]
[1646730578540,1.97379,2569.5,2569.3,1.95266189]
[1646730578541,1.0,2569.5,2569.3,1.95266189]
[1646730578744,1.0,2569.8,2569.3,2.25266189]
[1646730578988,0.466,2570.0,2569.3,2.25266189]
[1646730579284,0.466,2570.0,2569.4,1.94707]
[1646730579686,1.64247234,2570.0,2569.5,0.9737]
[1646730580186,1.0,2569.9,2569.5,1.2737]
[1646730580387,4.966,2569.9,2569.5,1.2737]
[1646730580585,1.0,2569.6,2569.5,1.2737]
[1646730580786,1.0,2569.6,2569.5,0.3]
[1646730581191,1.0,2569.6,2569.4,1.9474]
[1646730581590,1.0,2569.5,2569.4,1.9474]
[1646730581790,1.43979,2569.7,2569.4,1.9474]
[1646730581990,0.466,2569.7,2569.4,1.9474]
[1646730582590,2.11431318,2570.2,2569.4,1.9474]
[1646730582591,0.466,2570.1,2569.4,1.9474]
[1646730582834,1.4396008,2570.1,2569.4,1.9474]
[1646730583035,0.97359,2570.0,2569.5,0.97363]
[1646730583333,0.97359,2570.0,2569.6,0.97358]
[1646730584435,0.97359,2570.0,2569.6,1.94715]
[1646730584938,0.97359,2570.0,2569.5,0.3]
[1646730585236,1.0,2569.9,2569.4,3.89451]
[1646730585434,0.97371,2569.8,2569.4,3.89451]
[1646730586880,4.93971,2569.8,2569.3,1.27885202]
[1646730587079,1.0,2569.5,2569.3,1.27885202]
[1646730587379,1.97377,2569.5,2569.3,2.25259202]
[1646730587579,1.94754,2569.7,2569.3,2.25259202]
[1646730587781,1.4397632,2569.8,2569.3,2.24742]
[1646730587984,1.4397632,2569.8,2569.4,1.94723]
[1646730588184,1.5956262,2569.8,2569.4,1.94723]
[1646730588583,1.5956262,2569.8,2569.4,1.94294182]
[1646730588784,1.4397632,2569.8,2569.4,1.94294182]
[1646730588985,1.4397632,2569.8,2569.4,2.91657182]
[1646730589186,1.4397632,2569.8,2569.4,2.82887576]
[1646730589383,3.4134432,2569.8,2569.4,2.82887576]
[1646730589784,2.43968,2569.8,2569.5,0.97361]
[1646730590434,1.43968,2569.8,2569.5,0.97361]
[1646730591432,1.43968,2569.8,2569.4,2.82887576]
[1646730592030,0.003161,2569.7,2569.4,2.82887576]
[1646730593037,0.003161,2569.7,2569.5,0.97361]
[1646730593839,0.155854,2569.9,2569.5,1.36691]
[1646730594081,0.155854,2569.9,2569.7,0.89423574]
[1646730594382,0.155854,2569.9,2569.6,6.14024]
[1646730595179,0.155854,2569.9,2569.7,1.94689]
[1646730595379,0.155854,2569.9,2569.7,2.24689]
[1646730595982,0.155854,2569.9,2569.7,1.94689]
[1646730596179,1.155854,2569.9,2569.7,1.94689]
[1646730598037,1.155854,2569.9,2569.7,2.24689]
[1646730598635,0.155854,2569.9,2569.7,2.24689]
[1646730600337,1.155854,2569.9,2569.7,2.24689]
[1646730600540,0.466,2569.8,2569.7,0.3]
[1646730600742,1.466,2569.8,2569.7,0.3]
[1646730600937,1.466,2569.8,2569.5,2.24734]
[1646730601137,1.466,2569.8,2569.5,1.94734]
[1646730601338,1.0,2569.6,2569.5,2.24734]
[1646730601784,0.9737,2569.7,2569.5,2.24734]
[1646730601981,1.0,2569.6,2569.5,2.24734]
[1646730603385,1.0,2569.6,2569.5,1.27373]
[1646730604989,0.466,2569.8,2569.5,1.27373]
[1646730605251,1.0,2570.0,2569.5,2.24731]
[1646730605439,3.38787434,2570.2,2569.5,2.24731]
[1646730605638,1.43952,2570.2,2569.5,2.24731]
[1646730605843,0.155844,2569.9,2569.5,2.24731]
[1646730606238,1.97352,2570.2,2569.5,2.24731]
[1646730606842,0.94835434,2570.1,2569.5,2.24731]
[1646730607038,0.94835434,2570.1,2569.6,1.94694]
[1646730607240,0.94835434,2570.1,2569.6,2.24694]
[1646730607441,0.94835434,2570.1,2569.7,0.97346]
[1646730607642,0.94835434,2570.2,2569.7,1.27346]
[1646730607845,4.57724979,2570.4,2569.7,1.66676]
[1646730607846,0.95307107,2570.4,2569.7,1.66676]
[1646730608243,0.94835434,2570.4,2569.8,2.34023]
[1646730608445,0.94835434,2570.3,2569.8,4.28685]
[1646730608744,0.94835434,2570.3,2569.9,0.97331]
[1646730608981,0.0042032,2570.4,2569.9,2.58540441]
[1646730608982,0.95255754,2570.4,2569.9,2.58540441]
[1646730609184,0.0042032,2570.4,2569.9,2.58540441]
[1646730609783,0.00420352,2570.4,2569.9,2.58540441]
[1646730609983,0.00420352,2570.4,2570.0,1.94668]
[1646730610187,0.00420352,2570.4,2570.0,3.89313]
[1646730610385,0.00420352,2570.4,2570.1,0.97324]
[1646730610588,0.94835434,2570.4,2570.1,0.97324]
[1646730610785,0.94835434,2570.4,2570.1,1.27324]